Cogmind - Beta 14 @@@ ROGUE MODE // 2024.08.23 @ 21:05:26 Player: Rubbe Result: Destroyed by S-10 Pest with Light Assault Rifle Performance ------------- Evolutions (1) 500 Regions Visited (2) 400 Robots Destroyed (31) 155 Value Destroyed (786) 786 Prototype IDs (1) 20 Alien Tech Used (0) 0 Bonus (0) 0 TOTAL SCORE: 1861 Bonus ------- None Cogmind --------- Core Integrity 0/400 Matter 266/300 Energy 237/250 System Corruption 7% Temperature Cool (84) Movement Walking (400) Ox4 Location -9/Materials Parts ------- > --- POWER (2) -------- Ion Engine > --- PROPULSION (3) --- Aluminum Leg Aluminum Leg > --- UTILITY (2) ------ Huge Storage Unit > --- WEAPON (2) ------- Beam Cannon Light Assault Rifle > --- INVENTORY (25) --- Light Nuclear Core Heat Sink High-capacity Storage Unit EM Shotgun EM Shotgun EM Shotgun Medium Laser Beam Rifle EMP Blaster Mini Grenade Launcher Mini Grenade Launcher Mini Grenade Launcher Mini Grenade Launcher Mining Laser Mace Peak State ------------ > --- POWER ------------ Heavy Ion Engine > --- PROPULSION ------- Aluminum Leg Aluminum Leg Aluminum Leg > --- UTILITY ---------- Huge Storage Unit Improved Terrain Scanner > --- WEAPON ----------- Medium Laser Beam Rifle > --- INVENTORY -------- Light Ion Engine Improved Ion Engine Heat Sink High-capacity Storage Unit EM Shotgun EM Shotgun EM Shotgun Beam Rifle Beam Cannon Light Assault Rifle Heavy Assault Rifle EMP Blaster Mini Grenade Launcher Mini Grenade Launcher Mini Grenade Launcher Mini Grenade Launcher Mining Laser Mace [Rating: 16] Favorites ----------- Power Ion Engine Engine Ion Engine Propulsion Aluminum Leg Leg Aluminum Leg Utility Improved Terrain Scanner Device Improved Terrain Scanner Storage Huge Storage Unit Weapon Assault Rifle Energy Gun EM Shotgun Energy Cannon Beam Cannon Ballistic Gun Assault Rifle Launcher Mini Grenade Launcher Build | -11 -10 -9 ------- Run | Yrd Mat Mat Slots Evolved 2 | . . 2 Power 1 | . . 1 Propulsion 1 | . . 1 Utility . | . . . Weapon . | . . . Parts Attached 27 | 7 4 16 Power 6 | 1 1 4 Engine 6 | 1 1 4 Core . | . . . Reactor . | . . . Propulsion 7 | 2 . 5 Treads . | . . . Leg 7 | 2 . 5 Wheel . | . . . Hover . | . . . Flight . | . . . Utility 4 | 2 1 1 Device 1 | 1 . . Storage 3 | 1 1 1 Processor . | . . . Hackware . | . . . Protection . | . . . Artifact . | . . . Weapon 10 | 2 2 6 Energy Gun 4 | . 1 3 Energy Cannon 1 | . . 1 Ballistic Gun 4 | 2 . 2 Ballistic Cannon . | . . . Launcher 1 | . 1 . Special Weapon . | . . . Impact Weapon . | . . . Slashing Weapon . | . . . Piercing Weapon . | . . . Special Melee Weapon . | . . . Unidentified Prototypes 1 | . . 1 Corrupted Parts 1 | . . 1 System Corruption 1 | . . 1 Parts Lost 12 | . 1 11 Power 5 | . 1 4 Propulsion 2 | . . 2 Utility 1 | . . 1 Weapon 4 | . . 4 Highest Loss Streak 6 | . 1 6 To Critical Strikes . | . . . Average Slot Usage (%) 82 | . 99 75 Engine 9 | . 13 7 Leg 27 | . 28 27 Device 9 | . 14 8 Storage 11 | . 14 11 Energy Gun 7 | . 4 8 Ballistic Gun 15 | . 21 12 Peak Build Rating 16 | 9 12 16 Average Rating 10 | 4 10 11 On Entrance 7 | . 9 12 Naked Turns . | . . . Heaviest Build 95 | 12 51 95 Greatest Support 30 | 20 20 30 Greatest Overweight (x) 9 | . 2 9 Average Overweight (x) 1 | . 1 2 Largest Inventory Capacity 25 | 8 20 25 Average Capacity 20 | 6 19 23 Most Carried 20 | 4 14 20 Average Carried 13 | 2 9 17 Final Capacity 25 | 8 20 25 Final Carried 15 | 3 13 15 Class Distribution -------------------- 69% | Mutant 30% | Scavenger-Mutant Dominant Class ---------------- Mutant | -10/Materials Mutant | -9/Materials Resources | -11 -10 -9 ----------- Run | Yrd Mat Mat Matter Collected 622 | 290 10 322 Remotely . | . . . Salvage Created 1090 | 125 78 887 Parts 79 | 10 10 59 Haulers Intercepted . | . . . Recyclers Shooed 1 | . 1 . Parts Field Recycled . | . . . Retrieved Matter . | . . . Parts Self-Destructed . | . . . Prevented . | . . . Kills | -11 -10 -9 ------- Run | Yrd Mat Mat Combat Hostiles Destroyed 24 | . 3 21 Guns 19 | . 2 17 Cannons 3 | . . 3 AOE 1 | . 1 . Classes Destroyed 9 | 2 3 4 Worker 1 | . 1 . Builder 1 | . . 1 Tunneler 2 | 2 . . Recycler 1 | 1 . . Mechanic 1 | . . 1 Watcher 1 | . 1 . Swarmer 6 | . 3 3 Grunt 15 | . . 15 Sentry 3 | . . 3 Best Kill Streak 8 | 3 4 8 Combat Bots Only 7 | . 3 7 Max Kills in Single Turn 2 | 2 2 2 Gunslinging . | . . . Exploded 1 | . 1 . Melee . | . . . Uniques/NPCs Destroyed . | . . . Combat | -11 -10 -9 -------- Run | Yrd Mat Mat Hostile Shots Fired 240 | . 19 221 Missed 63 | . 5 58 Damage Taken 1939 | . 134 1805 Core 449 | . 48 401 Absorbed by Shields . | . . . Core Remaining (%) 90 | 100 80 . Volleys Fired 74 | 6 8 60 Largest 2 | 2 2 2 Hottest 112 | 40 65 112 Shots Fired 133 | 12 11 110 Gun 120 | 12 9 99 Cannon 11 | . . 11 Launcher 2 | . 2 . Special . | . . . Kinetic 89 | 12 8 69 Thermal 28 | . . 28 Explosive 2 | . 2 . Electromagnetic 14 | . 1 13 Robot Hit Streak 10 | 2 2 10 Robot Miss Streak 3 | 1 1 3 Penetration Max . | . . . Secondary Targets 4 | . . 4 Max Gunslinging Chain 1 | . . 1 Shots Hit Robots 84 | 5 4 75 Core Hits 52 | 5 5 42 Critical Kills . | . . . Critical Parts Destroyed 1 | . . 1 Critical Strikes 2 | . . 2 Burn 1 | . . 1 Destroy 1 | . . 1 Melee Attacks . | . . . Impact . | . . . Slashing . | . . . Piercing . | . . . Sneak Attacks . | . . . Combat Hostiles . | . . . Follow-up Attacks . | . . . Damage Inflicted 1243 | 59 214 970 Guns 995 | 55 73 867 Cannons 103 | . . 103 Explosions 141 | . 141 . Melee . | . . . Ramming 4 | 4 . . Kinetic 683 | 55 55 573 Thermal 267 | . . 267 Explosive 141 | . 141 . Electromagnetic 148 | . 18 130 Impact . | . . . Slashing . | . . . Piercing . | . . . Highest Corruption 7 | . 1 7 Average Corruption 4 | . 1 4 Corruption Purged . | . . . Corruption Blocked . | . . . Effects 14 | . 2 12 Message Errors 5 | . 1 4 Matter Fused 2 | . . 2 Heat Flow Errors 3 | . 1 2 Data Loss (minor) 3 | . . 3 Weapon Failures 1 | . . 1 Overload Shots . | . . . Overflow Damage . | . . . Projectiles . | . . . Explosions . | . . . Melee . | . . . Knockbacks . | . . . Impact . | . . . Kinetic . | . . . Secondary . | . . . Self-Inflicted Damage 30 | . 30 . Shots 1 | . 1 . Rammed . | . . . Targets Rammed 2 | 2 . . Kicked 2 | 2 . . Crushed . | . . . Highest Temperature 273 | . 273 240 Average Temperature 58 | . 115 49 Received Heat Transfer 738 | . . 738 Siege Activations . | . . . Robots Corrupted . | . . . Combat Hostiles . | . . . Parts Fried . | . . . Impact Corruptions . | . . . Robots Melted 1 | . . 1 Combat Hostiles 1 | . . 1 Parts Melted 3 | . . 3 Heat Transferred 740 | . . 740 Parts Sabotaged . | . . . Parts Stolen . | . . . Parts Stripped . | . . . Power Chain Reactions . | . . . Alert | -11 -10 -9 ------- Run | Yrd Mat Mat Peak Influence 322 | 15 83 322 Initial 34 | . 9 34 Average 93 | 6 39 132 Maximum Alert Level 1 | . . 1 Low Security (%) 84 | 100 100 75 Level 1 15 | . . 24 Level 2 . | . . . Level 3 . | . . . Level 4 . | . . . Level 5 . | . . . High Security . | . . . Max Security . | . . . Squads Dispatched 4 | . . 4 Investigation 2 | . . 2 Extermination . | . . . Reinforcement 2 | . . 2 Assault . | . . . Garrison . | . . . Intercept . | . . . Searches Triggered . | . . . Construction Impeded . | . . . Haulers Reinforced . | . . . Active Scanning Responses . | . . . Cargo Convoy Interrupts . | . . . Stealth | -11 -10 -9 --------- Run | Yrd Mat Mat Distress Signals 2 | . . 2 Communications Jammed . | . . . Distress Signals . | . . . Times Spotted 36 | . 5 31 Peak Tracking Total 9 | . 3 9 Tactical Retreats . | . . . Traps | -11 -10 -9 ------- Run | Yrd Mat Mat Traps Triggered 2 | . 1 1 Indirectly . | . . . Trap Hack Attempts . | . . . Triggered . | . . . Disarmed . | . . . Reprogrammed . | . . . Reused . | . . . Traps Extracted . | . . . Installed . | . . . Triggered . | . . . Machines | -11 -10 -9 ---------- Run | Yrd Mat Mat Machines Disabled . | . . . Max in Single Turn . | . . . Machines Repaired . | . . . Machines Dismantled . | . . . Machines Sabotaged . | . . . Overloaded Fab Kills . | . . . Hacking | -11 -10 -9 --------- Run | Yrd Mat Mat Machines Accessed 4 | . 1 3 Terminals 3 | . 1 2 Fabricators . | . . . Repair Stations . | . . . Recycling Units 1 | . . 1 Scanalyzers . | . . . Garrison Access . | . . . Total Hacks 11 | . 1 10 Successful 6 | . . 6 Failed 5 | . 1 4 Catastrophic 1 | . . 1 Database Lockouts . | . . . Manual . | . . . Terminals 7 | . 1 6 Fabricators . | . . . Repair Stations . | . . . Recycling Units 4 | . . 4 Scanalyzers . | . . . Garrison Access . | . . . Terminal Hacks 2 | . . 2 Alert Level 1 | . . 1 Reinforcement Status 1 | . . 1 Fabricator Hacks . | . . . Repair Station Hacks . | . . . Recycling Unit Hacks 4 | . . 4 Recycle Component 2 | . . 2 Report Inventory 2 | . . 2 Scanalyzer . | . . . Garrison Access Hacks . | . . . Unauthorized Hacks . | . . . Terminals . | . . . Fabricators . | . . . Repair Stations . | . . . Recycling Units . | . . . Scanalyzers . | . . . Garrison Access . | . . . Data Cores Recovered . | . . . Used . | . . . Hacking Detections 4 | . 1 3 Full Trace Events 2 | . . 2 Feedback Events 1 | . . 1 Corruption 1 | . . 1 Feedback Blocked . | . . . Robot Schematics Acquired . | . . . Robots Built . | . . . Authchips . | . . . Time . | . . . Total Robot Build Rating . | . . . Part Schematics Acquired . | . . . Parts Built . | . . . Authchips . | . . . Time . | . . . Total Part Build Rating . | . . . Parts Repaired . | . . . Time . | . . . Parts Recycled 2 | . . 2 Recycled Matter . | . . . Retrieved Matter . | . . . Retrieved Components . | . . . Parts Scanalyzed . | . . . Part Schematics Acquired . | . . . Parts Damaged . | . . . Bothacking | -11 -10 -9 ------------ Run | Yrd Mat Mat Used RIF Installer . | . . . Robots Hacked . | . . . Non-combat . | . . . Combat . | . . . Robot Hacks Applied . | . . . Relay Couplers Released . | . . . Fabnet Peak Effective % . | . . . Robots Rewired . | . . . Allies Hacked . | . . . Hacks Repelled . | . . . Allies | -11 -10 -9 -------- Run | Yrd Mat Mat Total Allies . | . . . Largest Group . | . . . Highest-Rated Group . | . . . Highest-Rated Ally . | . . . Total Orders . | . . . Ally Attacks . | . . . Total Damage . | . . . Kills . | . . . Allies Corrupted . | . . . Allies Melted . | . . . Intel | -11 -10 -9 ------- Run | Yrd Mat Mat Robot Analysis Total . | . . . Derelict Logs Recovered . | . . . Drone Launches . | . . . Drone Recoveries . | . . . Exploration | -11 -10 -9 ------------- Run | Yrd Mat Mat Turns Passed 1186 | 121 326 739 Spaces Moved 396 | 91 121 184 Core 34 | 34 . . Treads . | . . . Legs 362 | 57 121 184 Wheels . | . . . Hover . | . . . Flight . | . . . Fastest Speed 50 | 50 120 190 Average Speed 231 | 93 241 293 Slowest Speed 750 | 120 260 750 Overloaded Moves . | . . . Propulsion Burnouts . | . . . Robots Hopped . | . . . Cave-ins Triggered . | . . . Exploration Rate (%) 17 | 4 27 21 Regions Visited 2 Branch Regions . Pre-discovered Areas . | . . . Known Exits Taken . | . . . Unknown Exits Taken 2 | 1 1 . Scrap Searched . | . . . Spaces Dug . | . . . Terrain Destroyed 2 | . 2 . Melee . | . . . Projectile . | . . . AOE 2 | . 2 . Terrain Rammed . | . . . Walls Destroyed . | . . . Machines Disabled . | . . . Actions | -11 -10 -9 --------- Run | Yrd Mat Mat Total 536 | 115 143 278 Wait . | . . . Move 394 | 90 120 184 Hop . | . . . Pick Up 37 | 10 11 16 Fast Attach . | . . . Attach 18 | 7 1 10 Detach . | . . . Swap 9 | . 3 6 Drop 2 | . . 2 Fire 74 | 6 8 60 Melee . | . . . Ram . | . . . Kick 2 | 2 . . Crush . | . . . Escape Stasis . | . . . Rewire . | . . . Trap . | . . . Miscellaneous . | . . . Route ------- -11/Scrapyard -10/Materials (discovered 2 exits: *Mat / [*Min]) -9/Materials History --------- Turn | Location | Event 15 | -11/Scrapyard | Discovered new exit (range 16) 122 | -11/Scrapyard | Entered Materials 321 | -10/Materials | Build established: Mutant 409 | -10/Materials | Discovered new exit (range 15) 409 | -10/Materials | Discovered new exit (range 12) 448 | -10/Materials | Entered another Materials area 448 | -9/Materials | Evolved 2 slots: Power x1, Propulsion x1 988 | -9/Materials | Core integrity fell below 50% 1027 | -9/Materials | Lost 6 parts (1p2n1u2w) 1142 | -9/Materials | Core integrity fell below 20% 1187 | -9/Materials | Destroyed by S-10 Pest with Light Assault Rifle Last Messages --------------- K-01 Serf collects debris. G-34 Mercenary destroyed. K-01 Serf collects debris. G-34 Mercenary destroyed. K-01 Serf collects debris. R-06 Scavenger collects Heat Sink. K-01 Serf collects debris. R-06 Scavenger collects Wheel. K-01 Serf collects debris. R-06 Scavenger collects Lgt. Assault Rifle. Imp. Ion Engine destroyed. R-06 Scavenger collects Lgt. Treads. K-01 Serf collects debris. Recalibrator melted. M-13 Machinist destroyed. S-10 Pest destroyed. OQXSC6J=M&JPG=VNXKO8< 8ZJL6ZA0ICJEYQEV< K-01 Serf collects debris. S-10 Pest destroyed. K-01 Serf collects debris. Map ----- +----------------------------------------------------+ | ???????????????????#######+############## #????? | | ???????????????????# #??????????? #????? | | ???????????????????# """ #???????????? #????? | | ???????????????????# "Y" #????????????? #????? | | ???????????????????# #??????????????+????? | | ???????????????????######/####???????????????????? | | ????????????????????????# #??????????????????????? | | ????????????????????????# #??????????????????????? | | ????????????????????????# #??????????????????????? | | ???????????###+?????????# #??????????????????????? | | ???????????# ######## ##?????????????????????? | | ???????????# #?????????????????????? | | ???????????# r #?????????????????????? | | ???????????# #?????????????????????? | | ???????????# ####### +?????????????????????? | | ???????????###?????????# #?????????????????????? | | ???????????????????????# ########??????????????? | | ????????????????######## #! #??????????????? | | ????????????????# # # !! #??????????????? | | ????????????????# T # # % #??????????????? | | ????????????????# # % # #??????????????? | | ????????????????# + %+%"T" #??????????????? | | ????????????????# # %#=""" #??????????????? | | ????????????????# # %########??????????????? | | ????????????????########[%*### #?????????????? | | ??????????????????????# @[! %= ????????? | | ??????????????????????# = s ????????? | | ??????????????????????# % % s ????????? | | ??????????????????????# ## * =#####?????????? | | ??????????????????????# #?##+###?????????????? | | ??????????????????????## ##????????????????????? | | ???????????????????????#*=*#?????????????????????? | | ???????????????????????#!*%#?????????????????????? | | ???????????????????????#%k=#?????????????????????? | | ???????????????????????#k= #?????????????????????? | | ???????????????????????#[ #?????????????????????? | | ???????????????????????# #?????????????????????? | | ??????????????????????? ?????????????????????? | | ??????????????????????? ?????????????????????? | | ??????????????????????? ?????????????????????? | | ??????????????????????? ?????????????????????? | | ?????????????????????????????????????????????????? | | ?????????????????????????????????????????????????? | | ?????????????????????????????????????????????????? | | ?????????????????????????????????????????????????? | | ?????????????????????????????????????????????????? | | ?????????????????????????????????????????????????? | | ?????????????????????????????????????????????????? | | ?????????????????????????????????????????????????? | | ?????????????????????????????????????????????????? | +----------------------------------------------------+ Best States ------------- Heat Dissipation 28 Energy Generation 17 Energy Capacity 290 Matter Stores 300 Matter Capacity 300 Sight Range 16 Terrain Scan Range 16 Terrain Scan Density 10 Evasion (%) 55 Item Schematics ----------------- None Robot Schematics ------------------ None Fabricated ------------ Nothing Alien Tech Used ----------------- None Achievements -------------- None Challenges ------------ None Game ------ Seed AerolevDeuteriumExtractor Manual? 0 Play Time 00:14:07 Cumulative 5.0 hours Start 2024.08.22 @ 22:04:12 End 2024.08.23 @ 21:05:26 Sessions 2 Manual Loads 0 Difficulty Rogue Special Mode None Game No. 20 Rogue 20 Adventurer 0 Explorer 0 Win Type - Total 0 Types 0/0/0/0/0/0/0/0/0 Lore% 6 Gallery% 12 Achievement% 12 Wizard Run 0 Options --------- Layout 1 ASCII 0 Keyboard 0 Movement Mouse Keybinds 0 Fullscreen 1 Font 24/Smallcaps Map View 50x35 Zoom Use 0% Tactical HUD 0 Map Filters NONE Filters NONE Steam 1 RUN: 46fb3c97-52e4-490e-b011-2a9094d168c0